[Event "Romanian Rapid Open 2022"]
[Site "Sebes"]
[Date "2022.12.02"]
[Round "5.24"]
[White "Tampea, Radu"]
[Black "Ghita, Vlad-Bogdan"]
[Result "1/2-1/2"]
[ECO "A44"]
[WhiteElo "2110"]
[BlackElo "1938"]
[Annotator "TA"]
[PlyCount "58"]
[EventDate "2022.12.02"]
[EventType "rapid"]
[EventCountry "ROU"]
[SourceTitle "playchess.com"]
[Source "ChessBase"]
[SourceQuality "1"]
[TimeControl "600+5"]

{[%evp 9,58,72,75,73,77,78,72,75,79,68,73,64,60,52,85,47,68,28,42,37,52,47,41,31,30,32,185,32,68,77,46,64,68,68,79,70,277,57,57,57,166,173,161,160,70,79,93,97,146,0,11]} 1. d4 {[%emt 0:00:01]} c5 {[%emt 0:00:01]} 2. d5 {[%emt 0:00:01]} Nf6 {[%emt 0:00:02]} 3. Nc3 {[%emt 0:00:02]} e5 {[%emt 0:00:02]} 4. e4 {[%emt 0:00:02]} d6 {[%emt 0:00:01]} 5. a4 {[%emt 0:00:05]} Be7 {[%emt 0:00:01]} 6. Bb5+ {[%emt 0:00:01] A44: Semi-Benoni.} Nbd7 {[%emt 0:00:02]} 7. Nf3 {[%emt 0:00:03]} O-O {[%emt 0:00:02]} 8. O-O {[%emt 0:00:02] White is better.} Ne8 {[%emt 0:00:01]} 9. Nd2 {[%emt 0:00:15] White is much more active.} Bg5 {[%emt 0:00:04]} 10. Bd3 {[%emt 0:00:02]} g6 {[%emt 0:00:04]} 11. Nc4 {[%emt 0:00:03] [#]} Nb6 $146 {[%emt 0:00:05]} ({Predecessor:} 11... Bxc1 12. Qxc1 Qe7 13. f4 exf4 14. Qxf4 Ne5 15. Nxe5 Qxe5 16. Qxe5 dxe5 17. Nb5 Bd7 {1-0 (43) Bilchinski,A (2015)-Heer,S (1942) Bayern 2013}) 12. Nxb6 {[%emt 0:00:13]} (12. Bxg5 {is more complex.} Qxg5 13. Qd2 Qh4 14. Ne3) 12... axb6 {[%emt 0:00:01]} 13. Nb5 {[%emt 0:00:17]} (13. Bxg5 {is interesting.} Qxg5 14. f4 exf4 15. Qd2) 13... Bxc1 {[%emt 0:00:11]} 14. Qxc1 {[%emt 0:00:01]} Nc7 {[%emt 0:00:02]} 15. f4 {[%emt 0:00:39]} exf4 {[%emt 0:00:27]} 16. Qxf4 {[%emt 0:00:02]} Nxb5 {[%emt 0:00:08]} 17. Bxb5 {[%emt 0:00:03]} Qc7 $2 {[%emt 0:00:42] [#]} ({Black should play} 17... f6 $14) 18. Rae1 $2 {[%emt 0:00:47]} (18. Qf6 $18) 18... Bd7 {[%emt 0:00:02]} 19. e5 $36 {[%emt 0:02:53][%mdl 2048] White is really pushing.} dxe5 {[%emt 0:00:03]} 20. Qxe5 {[%emt 0:00:01]} Qxe5 {[%emt 0:00:02]} 21. Rxe5 {[%emt 0:00:01]} Bxb5 {[%emt 0:00:02]} 22. axb5 $16 {[%emt 0:00:01][%mdl 4096] Endgame KRR-KRR} Rfe8 $2 {[%emt 0:00:22] Inhibits Re7.} (22... c4 $1 $14) 23. Rfe1 $2 {[%emt 0:00:21]} (23. Rxe8+ $18 Rxe8 24. Rf6) 23... Rxe5 $14 {[%emt 0:01:22]} 24. Rxe5 {[%emt 0:00:01] KR-KR} Ra4 {[%emt 0:00:20]} (24... Kg7 $14) 25. Re7 $18 {[%emt 0:01:08]} Rd4 {[%emt 0:00:19]} 26. Rxb7 {[%emt 0:01:26]} Rxd5 {[%emt 0:00:02]} 27. Rxb6 {[%emt 0:01:22]} Rd1+ {[%emt 0:00:02]} 28. Kf2 {[%emt 0:00:01] Threatens to win with Ke2.} Rd2+ {[%emt 0:00:01] [#]} 29. Kf3 {[%emt 0:00:02]} (29. Ke3 $1 $16 {[%cal Re3d2]} Rxc2 30. b4 (30. Rb8+ Kg7 $11) 30... Rc3+ 31. Kd2) 29... Rxc2 {[%emt 0:00:01] Weighted Error Value: White=0.54/Black=0.32} 1/2-1/2

[Event "Romanian Rapid Open 2022"]
[Site "Sebes"]
[Date "2022.12.02"]
[Round "5.25"]
[White "Ceteras, Marius-Nicolae"]
[Black "Cristea, Virgil"]
[Result "1-0"]
[ECO "D34"]
[WhiteElo "2391"]
[BlackElo "1493"]
[Annotator "TA"]
[PlyCount "97"]
[EventDate "2022.12.02"]
[EventType "rapid"]
[EventCountry "ROU"]
[SourceTitle "playchess.com"]
[Source "ChessBase"]
[SourceQuality "1"]
[TimeControl "600+5"]

{[%evp 25,97,29,48,22,22,16,19,12,14,17,19,18,51,44,48,43,130,128,131,129,127,127,140,140,138,148,155,153,152,150,335,333,368,368,408,335,383,367,397,385,457,445,632,608,576,503,556,538,1388,581,29974,29974,29974,29976,29978,29979,29979,29980,29980,29981,29984,29985,29985,29984,29984,29985,29985,29986,29986,29986,29988,29987,29989,29989]} 1. d4 {[%emt 0:00:01]} d5 {[%emt 0:00:02]} 2. c4 {[%emt 0:00:03]} e6 {[%emt 0:00:01]} 3. Nf3 {[%emt 0:00:01]} Nf6 {[%emt 0:00:03]} 4. g3 {[%emt 0:00:00]} c5 {[%emt 0:00:14]} 5. cxd5 {[%emt 0:00:02]} exd5 {[%emt 0:00:04]} 6. Bg2 {[%emt 0:00:03]} Nc6 {[%emt 0:00:04]} 7. O-O {[%emt 0:00:03]} h6 {[%emt 0:00:07]} 8. Nc3 {[%emt 0:00:14]} Be6 {[%emt 0:00:17]} 9. b3 {[%emt 0:00:28]} Be7 {[%emt 0:00:19]} 10. Bb2 {[%emt 0:00:03]} O-O {[%emt 0:00:03]} 11. dxc5 {[%emt 0:00:05]} Bxc5 {[%emt 0:00:05]} 12. Na4 {[%emt 0:00:05]} Be7 {[%emt 0:00:07]} 13. Rc1 {[%emt 0:00:02]} Rc8 {[%emt 0:00:08]} 14. Nd4 {[%emt 0:00:15] D34: Tarrasch Defence: 6 g3 Nf6 7 Bg2 Be7.} Nxd4 {[%emt 0:00:09]} 15. Qxd4 {[%emt 0:00:01]} b6 {[%emt 0:00:47]} 16. Rfd1 {[%emt 0:01:19] The position is equal.} Rxc1 {[%emt 0:00:28]} 17. Rxc1 {[%emt 0:00:12]} Qd7 {[%emt 0:00:24]} 18. Rd1 {[%emt 0:00:25] [#]} Qc7 $146 {[%emt 0:00:18]} ({Predecessor:} 18... Rd8 19. e3 Ne8 20. Qd2 Bf6 21. Bxf6 Nxf6 22. Nc3 Kf8 23. Qd4 Kg8 24. a4 Bg4 {1-0 (34) Gutierrez Valero,M (1945)-Ramoneda Rumi,G (1716) Padron 2008}) 19. Nc3 {[%emt 0:00:16]} Bc5 {[%emt 0:00:15]} 20. Qd2 {[%emt 0:00:05][%cal Rc3d5]} Ng4 {[%emt 0:01:20]} ({Black should play} 20... Qe7 $14) 21. e3 $16 {[%emt 0:00:20]} (21. Nxd5 $2 {is the wrong capture.} Bxd5 22. Qxd5 (22. Bxd5 $2 Nxf2 23. Kf1 Nxd1 $19) 22... Nxf2 $19) 21... Nf6 {[%emt 0:00:08]} 22. Nxd5 {[%emt 0:00:57]} ({Weaker is} 22. Bxd5 Rd8 23. Nb5 Qc8 24. Bxf6 (24. Nxa7 $2 {perishes.} Qa6 $19) 24... Rxd5 $11) 22... Nxd5 {[%emt 0:00:10]} 23. Bxd5 {[%emt 0:00:06]} Qe7 {[%emt 0:01:10]} 24. Qc3 {[%emt 0:00:44][%csl Gb2][%cal Rc3g7] [#]} f6 {[%emt 0:00:12]} 25. Qc4 {[%emt 0:00:13]} Bxd5 {[%emt 0:00:05]} 26. Rxd5 {[%emt 0:00:04]} Kh8 {[%emt 0:00:05]} 27. Qd3 {[%emt 0:00:03] White is more active.} Re8 $2 {[%emt 0:00:21] Loses the game.} (27... Qe6 $16 {is a better defense.} 28. Rd7 a5) 28. Rd7 $18 {[%emt 0:00:07]} Qe6 {[%emt 0:00:14]} 29. Rxa7 {[%emt 0:00:25]} Re7 {[%emt 0:00:24]} 30. Rxe7 {[%emt 0:01:00]} Qxe7 {[%emt 0:00:13][%mdl 4096] Endgame KQB-KQB} 31. Qd5 {[%emt 0:00:08]} Kh7 {[%emt 0:00:23]} 32. Kg2 {[%emt 0:00:04]} Ba3 {[%emt 0:00:15]} 33. Bd4 {[%emt 0:00:05]} Bc5 {[%emt 0:00:10]} (33... b5 $142 34. Qf5+ Kh8 35. Qc8+ Kh7) 34. Bxc5 {[%emt 0:00:08]} bxc5 {[%emt 0:00:03] KQ-KQ} 35. a4 {[%emt 0:00:01] [#] And now Qa8 would win.} Qa7 {[%emt 0:00:10] Prevents Qa8.} 36. h4 {[%emt 0:00:06]} Qb6 {[%emt 0:00:15]} 37. e4 {[%emt 0:00:13]} (37. Qe4+ $142 f5 38. Qxf5+ Kh8 39. Qf8+ Kh7 40. Qa8) 37... g6 {[%emt 0:00:05]} 38. Qf7+ {[%emt 0:00:10] White mates.} Kh8 {[%emt 0:00:03]} 39. Qxg6 {[%emt 0:00:03]} Qxb3 {[%emt 0:00:08]} 40. Qxh6+ {[%emt 0:00:02]} Kg8 {[%emt 0:00:01]} 41. Qg6+ {[%emt 0:00:01]} Kf8 {[%emt 0:00:05]} 42. Qxf6+ {[%emt 0:00:02]} Kg8 {[%emt 0:00:01]} 43. a5 {[%emt 0:00:49][%cal Ba4a5,Ba5a6,Ba6a7][%mdl 32]} Qa4 {[%emt 0:00:14]} 44. Qg6+ {[%emt 0:00:13]} Kh8 {[%emt 0:03:35]} 45. a6 {[%emt 0:04:03]} c4 {[%emt 0:00:05]} 46. Qf6+ {[%emt 0:00:05]} Kg8 {[%emt 0:00:00]} 47. Qd8+ {[%emt 0:00:00]} Kh7 {[%emt 0:00:00]} 48. Qc7+ {[%emt 0:00:00]} Kg8 {[%emt 0:00:00]} 49. a7 {[%emt 0:00:00] Weighted Error Value: White=0.24 (precise) /Black=0.50} 1-0

[Event "Romanian Rapid Open 2022"]
[Site "Sebes"]
[Date "2022.12.02"]
[Round "5.26"]
[White "Roncea, Radu"]
[Black "Nastore, Pavel-Alexandru"]
[Result "0-1"]
[ECO "A35"]
[WhiteElo "1600"]
[BlackElo "2218"]
[Annotator "TA"]
[PlyCount "98"]
[EventDate "2022.12.02"]
[EventType "rapid"]
[EventCountry "ROU"]
[SourceTitle "playchess.com"]
[Source "ChessBase"]
[SourceQuality "1"]
[TimeControl "600+5"]

{[%evp 18,98,-45,-33,-22,-44,-23,-46,-37,-42,-39,-37,-46,-48,-37,-70,-66,-67,-74,-76,-68,-68,-65,-93,-79,-82,-83,-75,-66,-102,-57,-82,-79,-86,-81,-106,-102,-202,-129,-115,-107,-229,-156,-273,-274,-257,-119,-290,-283,-280,-275,-247,-258,-261,-260,-404,-391,-498,-494,-480,-474,-572,-555,-531,-499,-731,-793,-763,-738,-754,-754,-716,-722,-7995,-7915,-6199,-5994,-29981,-29982,-29982,-29983,-29982,-29983]} 1. d4 {[%emt 0:00:04]} Nf6 {[%emt 0:00:01]} 2. c4 {[%emt 0:00:16]} c5 {[%emt 0:00:06]} 3. e3 {[%emt 0:00:30]} cxd4 {[%emt 0:00:14]} 4. exd4 {[%emt 0:00:01]} g6 {[%emt 0:00:05]} 5. Nf3 {[%emt 0:00:19]} Bg7 {[%emt 0:00:01]} 6. Nc3 {[%emt 0:00:07]} O-O {[%emt 0:00:11]} 7. Be2 {[%emt 0:00:02]} d5 {[%emt 0:00:02]} 8. cxd5 {[%emt 0:00:17]} Nxd5 {[%emt 0:00:02]} 9. O-O {[%emt 0:00:02]} Nc6 {[%emt 0:00:11]} 10. Be3 {[%emt 0:00:31]} b6 {[%emt 0:02:51] A35: Symmetrical English: 2 Nc3 Nc6 3 Nf3.} 11. Rc1 {[%emt 0:00:06]} Bb7 {[%emt 0:00:00]} 12. Qd2 {[%emt 0:00:40]} Nxe3 {[%emt 0:00:10] Black is slightly better.} 13. fxe3 {[%emt 0:00:02] [#]} Qd7 $146 {[%emt 0:00:04]} ({Predecessor:} 13... Rc8 14. Rfd1 Qd7 15. e4 Rfd8 16. d5 Ne5 17. Nxe5 Bxe5 18. h3 a6 19. Qe3 Qd6 {0-1 (51) Sofronie,I (2621)-Turov,M (2695) Playchess.com INT 2005}) 14. a3 {[%emt 0:00:32]} Rac8 {[%emt 0:00:01]} 15. Bb5 {[%emt 0:00:12] Hoping for d5.} a6 {[%emt 0:00:01] Inhibits d5.} 16. Ba4 {[%emt 0:00:28]} b5 {[%emt 0:00:02] Prevents d5.} 17. Bb3 {[%emt 0:00:11]} Na5 {[%emt 0:00:02]} 18. Ba2 {[%emt 0:00:12]} Nc4 {[%emt 0:00:02]} (18... e5 {feels hotter.} 19. Ne2 Bxf3 20. Rxc8 Rxc8 21. Rxf3 Nc4) 19. Bxc4 {[%emt 0:00:04]} Rxc4 {[%emt 0:00:01]} 20. Ne2 {[%emt 0:01:09]} Rfc8 {[%emt 0:00:57][%cal Oe7e5]} (20... Bxf3 {simplifies} 21. Rxf3 Rxc1+ 22. Nxc1 Rd8) 21. Rxc4 {[%emt 0:00:04]} Rxc4 {[%emt 0:00:03]} 22. Rc1 {[%emt 0:00:02]} Rxc1+ {[%emt 0:00:42]} 23. Nxc1 {[%emt 0:00:02]} e5 {[%emt 0:00:18]} 24. Ne2 {[%emt 0:00:40]} exd4 {[%emt 0:00:44]} 25. Nexd4 {[%emt 0:00:21]} Qg4 {[%emt 0:00:57]} 26. Qf2 {[%emt 0:00:13]} Qe4 {[%emt 0:00:47]} 27. h3 {[%emt 0:00:12]} (27. Qe1 $17) 27... Bh6 {[%emt 0:00:03] This pair of bishops is nice.} 28. Nc2 {[%emt 0:01:45]} Qd3 {[%emt 0:00:03] ...Qb3 is the strong threat.} 29. Ne5 {[%emt 0:00:14]} (29. Qd2 $17 Qb3 30. Qc3 (30. Qd8+ $2 Bf8 $19) 30... Qxc3 31. bxc3) 29... Qd1+ {[%emt 0:00:19]} 30. Kh2 {[%emt 0:00:08]} (30. Qf1 $17 {might work better.} Qd5 31. Nf3) 30... Qd5 $19 {[%emt 0:00:02] Active counter play!} 31. Nf3 {[%emt 0:00:35] [#]} Qc5 {[%emt 0:00:13]} (31... Qb3 $1 $19 {and Black stays clearly on top.} 32. Ncd4 Qxe3 33. Qxe3 Bxe3) 32. Ncd4 $2 {[%emt 0:00:26]} (32. Nfd4 $17) 32... Qc7+ {[%emt 0:00:12]} 33. Qg3 {[%emt 0:00:06]} Qxg3+ {[%emt 0:00:07]} 34. Kxg3 {[%emt 0:00:02]} Bxe3 {[%emt 0:00:02][%mdl 4096] Endgame KBB-KNN} 35. Nc2 {[%emt 0:00:17]} Bc1 {[%emt 0:00:03]} 36. b4 {[%emt 0:00:07]} (36. b3 {was forced.}) 36... Be4 {[%emt 0:00:19]} 37. Nfd4 {[%emt 0:00:02]} f5 {[%emt 0:00:14]} 38. Kf2 {[%emt 0:00:05]} h5 {[%emt 0:00:09]} 39. g4 {[%emt 0:00:32]} hxg4 {[%emt 0:00:13]} 40. hxg4 {[%emt 0:00:02]} fxg4 {[%emt 0:00:01]} 41. Kg3 {[%emt 0:00:12]} (41. Nb3 $142 Bf4 42. Ne1) 41... Bf5 {[%emt 0:00:01]} 42. Kf2 {[%emt 0:00:08]} Kf7 {[%emt 0:00:03]} 43. Ke2 {[%emt 0:00:08]} Kf6 {[%emt 0:00:04]} 44. Kd1 {[%emt 0:00:01]} Bb2 {[%emt 0:00:03] White must now prevent ...g3.} 45. Nc6 {[%emt 0:00:18]} Bxc2+ {[%emt 0:00:05]} 46. Kxc2 {[%emt 0:00:01]} Bxa3 {[%emt 0:00:04] ( -> ...g3)} 47. Kb3 {[%emt 0:00:15] [#] Inhibits g3.} g3 $1 {[%emt 0:00:04][%cal Bg4g3,Bg3g2][%mdl 32] Black mates.} 48. Nd4 {[%emt 0:00:05]} g2 {[%emt 0:00:03]} 49. Ne2 {[%emt 0:00:09] [#]} Bc1 $1 {[%emt 0:00:02][%mdl 512] Weighted Error Value: White=0.74/Black=0.13 (very precise)} 0-1

[Event "Romanian Rapid Open 2022"]
[Site "Sebes"]
[Date "2022.12.02"]
[Round "5.27"]
[White "Lup, Constantin-Ionel"]
[Black "Cordea, David"]
[Result "1-0"]
[ECO "E69"]
[WhiteElo "1739"]
[BlackElo "2049"]
[Annotator "TA"]
[PlyCount "163"]
[EventDate "2022.12.02"]
[EventType "rapid"]
[EventCountry "ROU"]
[SourceTitle "playchess.com"]
[Source "ChessBase"]
[SourceQuality "1"]
[TimeControl "600+5"]

{[%evp 19,163,42,49,15,41,0,0,-7,0,0,0,12,0,0,9,0,15,6,20,0,20,14,24,10,29,0,7,6,6,0,0,0,0,0,5,0,0,-5,0,0,0,0,0,0,0,0,0,-5,-5,-6,-5,-5,0,0,0,0,0,0,0,0,0,0,0,0,0,0,0,0,0,-81,-101,-80,-80,-102,-102,-224,-183,-193,-27,-31,0,-874,-316,-316,-296,-265,-8,-8,-8,-8,-8,-8,0,0,0,-8,-8,-8,-8,-8,-8,-43,-46,-58,0,-8,0,-58,0,-8,0,-58,0,-8,-8,-8,0,-8,-8,-8,-8,-8,-8,-29971,8,8,8,8,8,8,8,8,29970,29971,29973,29974,29971,29972,29972,29971,29972,29973,29986,29987,29987,29988]} 1. c4 {[%emt 0:00:03]} g6 {[%emt 0:00:34]} 2. g3 {[%emt 0:00:05]} Bg7 {[%emt 0:00:02]} 3. Bg2 {[%emt 0:00:02]} c6 {[%emt 0:00:11]} 4. Nf3 {[%emt 0:00:08]} Nf6 {[%emt 0:00:12]} 5. O-O {[%emt 0:00:03]} O-O {[%emt 0:00:04]} 6. d4 {[%emt 0:00:15]} d6 {[%emt 0:00:01]} 7. Nc3 {[%emt 0:00:14]} Nbd7 {[%emt 0:00:06]} 8. e4 {[%emt 0:01:04]} e5 {[%emt 0:00:04]} 9. h3 {[%emt 0:00:56]} Qc7 {[%emt 0:00:01]} 10. Be3 {[%emt 0:00:23]} Re8 {[%emt 0:00:03]} 11. dxe5 {[%emt 0:01:50] E69: King's Indian: Fianchetto: 6...Nbd7 7 0-0 e5 8 e4 c6 9 h3.} Nxe5 {[%emt 0:00:13]} 12. Nxe5 {[%emt 0:00:26]} dxe5 {[%emt 0:00:02]} 13. Qc2 {[%emt 0:00:33] [#] The position is equal.} Nd7 $146 {[%emt 0:00:30][%cal Bf6d7,Bd7f8,Bf8e6,Be6d4][%mdl 32]} ({Predecessor:} 13... Be6 14. b3 Rad8 15. Rfd1 b6 16. Rxd8 Rxd8 17. Rd1 Rd7 18. Kh2 Bf8 19. Rxd7 Nxd7 {0-1 (45) Piiroinen,T (1890)-Heino,J (2058) Naantali 2014}) 14. Rad1 {[%emt 0:00:16]} Nf8 {[%emt 0:00:07]} 15. b3 {[%emt 0:00:31]} Ne6 {[%emt 0:00:10]} 16. Ne2 {[%emt 0:01:04]} c5 {[%emt 0:00:43]} 17. Nc3 {[%emt 0:01:06]} Nd4 {[%emt 0:00:02] Prevents f4.} 18. Nd5 {[%emt 0:00:08]} Qd6 {[%emt 0:00:55]} 19. Qd3 {[%emt 0:01:10]} Bd7 {[%emt 0:01:28]} 20. Kh2 {[%emt 0:00:12]} f5 {[%emt 0:01:22]} 21. f4 {[%emt 0:00:31]} Kh8 {[%emt 0:00:17]} 22. Rde1 {[%emt 0:00:31]} Rf8 {[%emt 0:00:33]} 23. exf5 {[%emt 0:00:18]} Bxf5 {[%emt 0:00:46]} 24. Be4 {[%emt 0:00:03]} Rae8 {[%emt 0:00:38]} 25. Bxf5 {[%emt 0:00:04]} Nxf5 {[%emt 0:00:09]} 26. Bd2 {[%emt 0:00:12]} b6 {[%emt 0:00:24]} 27. Bc3 {[%emt 0:00:02]} (27. fxe5 {is more complex.} Bxe5 28. Kg2 b5 29. g4) 27... exf4 {[%emt 0:00:53]} (27... Kg8 {keeps more tension.} 28. g4 Nd4 29. fxe5 Rxe5 30. Rxf8+ Qxf8 31. Kg2 Qe8) 28. Bxg7+ {[%emt 0:00:07]} Nxg7 {[%emt 0:00:50]} (28... Kxg7 {feels hotter.} 29. Qc3+ Nd4 30. Nxf4 Re7) 29. Nxf4 {[%emt 0:00:06]} Qxd3 {[%emt 0:00:07]} 30. Nxd3 {[%emt 0:00:02]} Rxf1 {[%emt 0:00:19]} 31. Rxf1 $11 {[%emt 0:00:02][%mdl 4096] Endgame KRN-KRN} Kg8 {[%emt 0:00:08]} 32. Kg2 {[%emt 0:00:03]} Nf5 {[%emt 0:00:02] And now ...Ne3+ would win.} 33. Rf3 {[%emt 0:00:10]} Nd4 {[%emt 0:00:06]} 34. Rf2 {[%emt 0:00:03]} Kg7 {[%emt 0:00:01]} 35. Nf4 {[%emt 0:00:03]} Re3 {[%emt 0:00:22]} 36. Nd5 {[%emt 0:00:05]} Rd3 {[%emt 0:00:03]} 37. g4 {[%emt 0:00:08]} Rd1 {[%emt 0:00:06]} 38. Kg3 {[%emt 0:00:07]} Re1 {[%emt 0:00:01]} 39. Kg2 {[%emt 0:00:05]} h6 {[%emt 0:00:02]} 40. h4 {[%emt 0:00:02]} Re4 {[%emt 0:00:04]} 41. Kg3 {[%emt 0:00:05]} h5 {[%emt 0:00:08]} 42. gxh5 {[%emt 0:00:03]} gxh5 {[%emt 0:00:01]} 43. Nf4 {[%emt 0:00:06]} Kh6 {[%emt 0:00:05]} 44. Rh2 {[%emt 0:00:06]} (44. Nd5 $11) 44... Nf5+ $17 {[%emt 0:00:05]} 45. Kf3 {[%emt 0:00:01]} Re3+ {[%emt 0:00:02]} 46. Kf2 {[%emt 0:00:04]} Rc3 $1 {[%emt 0:00:02]} 47. Ne6 {[%emt 0:00:15]} (47. Ke1 $17 {was called for.}) 47... Rc2+ $1 $19 {[%emt 0:00:04]} 48. Kg1 {[%emt 0:00:00] [#]} Rc1+ {[%emt 0:00:03]} (48... Rxh2 $1 $19 49. Kxh2 Nxh4) 49. Kg2 $11 {[%emt 0:00:03]} Rc2+ {[%emt 0:00:03]} 50. Kh3 $2 {[%emt 0:00:03][%mdl 8192]} (50. Kg1 $11 Rxh2 51. Kxh2) 50... Rxh2+ $2 {[%emt 0:00:03]} (50... Rc3+ 51. Kg2 Ne3+ 52. Kg1 Rc1+ 53. Kf2 Ng4+ 54. Kg3 Rc3+ 55. Kf4 Nxh2) 51. Kxh2 $19 {[%emt 0:00:01]} Nxh4 {[%emt 0:00:01] KN-KN} 52. Nc7 {[%emt 0:00:16]} Kg5 $2 {[%emt 0:00:07]} (52... Nf3+ $19 53. Kg3 Nd4) 53. Nb5 $1 $11 {[%emt 0:00:02]} Nf3+ {[%emt 0:00:05]} 54. Kg3 {[%emt 0:00:02]} Nd4 {[%emt 0:00:04]} 55. Nxa7 {[%emt 0:00:05]} h4+ {[%emt 0:00:01]} 56. Kh2 {[%emt 0:00:03]} Kg4 {[%emt 0:00:02]} 57. Nb5 {[%emt 0:00:13]} Nf3+ {[%emt 0:00:14]} 58. Kh1 {[%emt 0:00:02]} h3 {[%emt 0:00:03]} 59. Nc3 {[%emt 0:00:03]} Nd2 {[%emt 0:00:33]} 60. Nd5 {[%emt 0:00:10]} Kg3 {[%emt 0:00:01] ( -> ...Ne4)} 61. Nc3 {[%emt 0:00:04] Inhibits Ne4.} Kg4 {[%emt 0:00:24]} (61... h2 $1 $15) 62. Nd5 {[%emt 0:00:02]} Kg3 {[%emt 0:00:07]} (62... Kh4 $11) 63. Nc3 $1 $15 {[%emt 0:00:01]} Kg4 {[%emt 0:00:11]} (63... h2 $1 $15) 64. Nd5 $11 {[%emt 0:00:01]} Kg3 {[%emt 0:00:04]} ({Black should play} 64... Kh4 $11) 65. Nc3 $1 $15 {[%emt 0:00:02]} Kf3 {[%emt 0:00:02]} ({Better is} 65... h2 $1 $15) 66. Kh2 {[%emt 0:00:01]} Kg4 {[%emt 0:00:02]} 67. Nd5 {[%emt 0:00:02]} Nf3+ {[%emt 0:00:03]} 68. Kh1 {[%emt 0:00:02]} Kg3 {[%emt 0:00:01]} 69. Nc3 {[%emt 0:00:07]} Nd2 {[%emt 0:00:02]} 70. Ne2+ $1 {[%emt 0:00:10]} Kf3 {[%emt 0:00:02]} 71. Nc3 $2 {[%emt 0:00:02][%mdl 8192] [#]} (71. Ng1+ $11 Kg4 72. Ne2) 71... Ke3 $2 {[%emt 0:00:02]} (71... Ne4 $1 {mates} 72. Nxe4 Kxe4 73. Kh2 Kd4 74. Kxh3 Kc3 75. Kg3 Kb2 76. Kf4 Kxa2 77. Ke5 Kxb3 78. Kd5 Kb4 79. Ke5 Kxc4 80. Ke4 b5 81. Kf3 b4 82. Ke3 b3 83. Kd2 Kd4 84. Kd1 c4 85. Kc1 c3 86. Kb1 Kd3 87. Kc1 b2+ 88. Kb1 Kd2 89. Ka2 Kc2 90. Ka3 b1=Q 91. Ka4 Qb6 92. Ka3 Qb3#) 72. Nd5+ $11 {[%emt 0:00:03]} Kf2 {[%emt 0:00:06]} 73. Kh2 {[%emt 0:00:03]} (73. Nxb6 Kg3 74. Nd5 Ne4) 73... Ke2 {[%emt 0:00:15]} 74. Nxb6 {[%emt 0:00:05] aiming for Nd7.} (74. Kxh3 {simplifies} Kd3 75. Kg4 Nxc4 76. bxc4 Kxc4 77. Nxb6+ Kb4 78. Kf4) 74... Kd3 $1 {[%emt 0:00:02]} 75. Nd7 {[%emt 0:00:06]} Nxc4 $2 {[%emt 0:00:14][%mdl 8192]} 76. Nxc5+ {[%emt 0:00:11] White mates.} ({Weaker is} 76. bxc4 Kxc4 77. Kg3 (77. Kxh3 Kb4 $11) 77... Kb4 $11) 76... Kc3 {[%emt 0:00:11]} 77. Ne4+ {[%emt 0:00:22]} Kb4 {[%emt 0:00:01]} 78. bxc4 {[%emt 0:00:05]} Kxc4 {[%emt 0:00:01]} 79. Nd2+ {[%emt 0:00:02]} Kc3 {[%emt 0:00:02]} 80. Nb1+ {[%emt 0:00:02]} Kc2 {[%emt 0:00:02] [#]} 81. a4 $1 {[%emt 0:00:01][%cal Ba2a4,Ba4a5][%mdl 32]} Kb3 {[%emt 0:00:01]} (81... Kc1 82. a5) 82. a5 {[%emt 0:00:01] Weighted Error Value: White=0.25 (precise) /Black=0.25 (precise)} ({Stronger than} 82. Kxh3 Kxa4 $11) 1-0